[Event "Titled Tuesday Blitz July 25 Early 2023"]
[White "Miszler, Levente"]
[Black "Yurovskykh, Oleksandr"]
[WhiteFideId "763276"]
[BlackFideId "14134020"]
[WhiteElo "2420"]
[BlackElo "2557"]
[Result "0-1"]
[Round "5"]
[TimeControl "180+2"]
[Date "2023.07.25"]
[WhiteClock "0:00:05"]
[BlackClock "0:00:04"]
[Board "120"]

1. Nf3 {[%clk 0:03:00]}  Nf6 {[%clk 0:02:52]} 2. c4 {[%clk 0:03:01]}  e6 {[%clk 0:02:44]} 3. g3 {[%clk 0:03:01]}  d5 {[%clk 0:02:44]} 4. Bg2 {[%clk 0:03:01]}  dxc4 {[%clk 0:02:44]} 5. O-O {[%clk 0:03:02]}  c5 {[%clk 0:02:37]} 6. Qa4+ {[%clk 0:03:01]}  Bd7 {[%clk 0:02:36]} 7. Qxc4 {[%clk 0:03:01]}  Bc6 {[%clk 0:02:37]} 8. d3 {[%clk 0:02:53]}  Nbd7 {[%clk 0:02:36]} 9. Bf4 {[%clk 0:02:52]}  Be7 {[%clk 0:02:35]} 10. Nbd2 {[%clk 0:02:50]}  O-O {[%clk 0:02:31]} 11. Rac1 {[%clk 0:02:49]}  Rc8 {[%clk 0:02:22]} 12. Ne5 {[%clk 0:02:49]}  Bxg2 {[%clk 0:02:18]} 13. Kxg2 {[%clk 0:02:48]}  Nxe5 {[%clk 0:02:16]} 14. Bxe5 {[%clk 0:02:49]}  Qd7 {[%clk 0:02:14]} 15. Nf3 {[%clk 0:02:48]}  b6 {[%clk 0:02:12]} 16. Rfd1 {[%clk 0:02:47]}  Rfd8 {[%clk 0:02:12]} 17. Qa6 {[%clk 0:02:31]}  Nd5 {[%clk 0:02:06]} 18. d4 {[%clk 0:02:27]}  Nb4 {[%clk 0:01:53]} 19. Qa3 {[%clk 0:02:20]}  Qb7 {[%clk 0:01:52]} 20. dxc5 {[%clk 0:02:17]}  Rxd1 {[%clk 0:01:49]} 21. Rxd1 {[%clk 0:02:18]}  Bxc5 {[%clk 0:01:49]} 22. Qa4 {[%clk 0:02:10]}  Nd5 {[%clk 0:01:26]} 23. e4 {[%clk 0:02:05]}  b5 {[%clk 0:01:10]} 24. Qb3 {[%clk 0:01:56]}  Nf6 {[%clk 0:01:08]} 25. Bxf6 {[%clk 0:01:53]}  gxf6 {[%clk 0:01:09]} 26. Qd3 {[%clk 0:01:53]}  Kg7 {[%clk 0:01:01]} 27. Rc1 {[%clk 0:01:49]}  Bb6 {[%clk 0:00:50]} 28. Rc3 {[%clk 0:01:20]}  Rxc3 {[%clk 0:00:44]} 29. bxc3 {[%clk 0:01:20]}  a6 {[%clk 0:00:35]} 30. Nd4 {[%clk 0:01:16]}  Qc7 {[%clk 0:00:31]} 31. f3 {[%clk 0:01:16]}  Qc5 {[%clk 0:00:26]} 32. h4 {[%clk 0:00:45]}  b4 {[%clk 0:00:24]} 33. Ne2 {[%clk 0:00:40]}  a5 {[%clk 0:00:20]} 34. cxb4 {[%clk 0:00:39]}  axb4 {[%clk 0:00:21]} 35. Kh3 {[%clk 0:00:24]}  Qf2 {[%clk 0:00:18]} 36. Nf4 {[%clk 0:00:20]}  Qxa2 {[%clk 0:00:15]} 37. Nh5+ {[%clk 0:00:20]}  Kg6 {[%clk 0:00:11]} 38. g4 {[%clk 0:00:20]}  Qf2 {[%clk 0:00:07]} 39. Ng3 {[%clk 0:00:16]}  Bc7 {[%clk 0:00:04]} 40. e5+ {[%clk 0:00:16]}  Kg7 {[%clk 0:00:03]} 41. exf6+ {[%clk 0:00:16]}  Kxf6 {[%clk 0:00:04]} 42. Nh5+ {[%clk 0:00:13]}  Ke7 {[%clk 0:00:04]} 43. f4 {[%clk 0:00:11]}  Qc5 {[%clk 0:00:04]} 44. Qxh7 {[%clk 0:00:10]}  Qc3+ {[%clk 0:00:04]} 45. Kg2 {[%clk 0:00:09]}  b3 {[%clk 0:00:04]} 46. Qh8 {[%clk 0:00:05]}  Qxh8 {[%clk 0:00:04]} 0-1


[Site "https://www.chess.com"]

[Event "Titled Tuesday Blitz July 25 Early 2023"]
[White "Goncalves, Davi Sulzbacher"]
[Black "Kochiev, Ivan"]
[WhiteFideId "2154510"]
[BlackFideId "2917890"]
[WhiteElo "2417"]
[BlackElo "2550"]
[Result "0-1"]
[Round "5"]
[TimeControl "180+2"]
[Date "2023.07.25"]
[WhiteClock "0:00:00"]
[BlackClock "0:00:17"]
[Board "121"]

1. d4 {[%clk 0:01:22]}  Nf6 {[%clk 0:02:57]} 2. c4 {[%clk 0:01:23]}  e6 {[%clk 0:02:57]} 3. Nc3 {[%clk 0:01:23]}  c5 {[%clk 0:02:58]} 4. d5 {[%clk 0:01:23]}  exd5 {[%clk 0:02:59]} 5. cxd5 {[%clk 0:01:24]}  d6 {[%clk 0:02:59]} 6. e4 {[%clk 0:01:24]}  g6 {[%clk 0:03:00]} 7. f3 {[%clk 0:01:25]}  h5 {[%clk 0:03:00]} 8. Bd3 {[%clk 0:01:24]}  Bg7 {[%clk 0:03:00]} 9. Nge2 {[%clk 0:01:25]}  O-O {[%clk 0:03:01]} 10. O-O {[%clk 0:01:25]}  Qe7 {[%clk 0:02:48]} 11. Bg5 {[%clk 0:01:25]}  Nbd7 {[%clk 0:02:47]} 12. Bc2 {[%clk 0:01:10]}  a6 {[%clk 0:02:44]} 13. a4 {[%clk 0:01:09]}  Rb8 {[%clk 0:02:44]} 14. a5 {[%clk 0:01:09]}  b5 {[%clk 0:02:39]} 15. axb6 {[%clk 0:01:10]}  Rxb6 {[%clk 0:02:39]} 16. b3 {[%clk 0:01:08]}  Ne5 {[%clk 0:02:17]} 17. h3 {[%clk 0:01:06]}  c4 {[%clk 0:02:17]} 18. f4 {[%clk 0:00:40]}  cxb3 {[%clk 0:01:18]} 19. Qd4 {[%clk 0:00:35]}  Ned7 {[%clk 0:01:09]} 20. Bd3 {[%clk 0:00:25]}  Qe8 {[%clk 0:00:46]} 21. Rae1 {[%clk 0:00:15]}  Nh7 {[%clk 0:00:43]} 22. Qe3 {[%clk 0:00:02]}  Nxg5 {[%clk 0:00:33]} 23. fxg5 {[%clk 0:00:03]}  Nc5 {[%clk 0:00:32]} 24. Bb1 {[%clk 0:00:04]}  a5 {[%clk 0:00:26]} 25. Nd4 {[%clk 0:00:04]}  Ba6 {[%clk 0:00:23]} 26. Rf2 {[%clk 0:00:04]}  Qe5 {[%clk 0:00:22]} 27. Nce2 {[%clk 0:00:03]}  Bxe2 {[%clk 0:00:17]} 28. Nxe2 {[%clk 0:00:03]}  a4 {[%clk 0:00:18]} 29. Nf4 {[%clk 0:00:00]}  a3 {[%clk 0:00:17]} 0-1


[Site "https://www.chess.com"]

[Event "Titled Tuesday Blitz July 25 Early 2023"]
[White "Hansch, Karsten"]
[Black "Molina Carretero, Daniel"]
[WhiteFideId "24692239"]
[BlackFideId "32071914"]
[WhiteElo "2548"]
[BlackElo "2415"]
[Result "1/2-1/2"]
[Round "5"]
[TimeControl "180+2"]
[Date "2023.07.25"]
[WhiteClock "0:00:07"]
[BlackClock "0:00:09"]
[Board "123"]

1. e4 {[%clk 0:02:56]}  c5 {[%clk 0:03:00]} 2. Nf3 {[%clk 0:02:55]}  d6 {[%clk 0:03:00]} 3. d4 {[%clk 0:02:55]}  cxd4 {[%clk 0:03:01]} 4. Nxd4 {[%clk 0:02:56]}  Nf6 {[%clk 0:03:01]} 5. Nc3 {[%clk 0:02:56]}  g6 {[%clk 0:03:02]} 6. Be3 {[%clk 0:02:55]}  Bg7 {[%clk 0:03:02]} 7. f3 {[%clk 0:02:55]}  Nc6 {[%clk 0:03:03]} 8. Qd2 {[%clk 0:02:55]}  O-O {[%clk 0:03:03]} 9. O-O-O {[%clk 0:02:55]}  d5 {[%clk 0:03:03]} 10. exd5 {[%clk 0:02:29]}  Nxd5 {[%clk 0:03:03]} 11. Nxd5 {[%clk 0:02:28]}  Qxd5 {[%clk 0:03:02]} 12. Nxc6 {[%clk 0:02:28]}  Qxc6 {[%clk 0:02:55]} 13. Bh6 {[%clk 0:02:10]}  Bxh6 {[%clk 0:02:29]} 14. Qxh6 {[%clk 0:02:11]}  Bf5 {[%clk 0:02:23]} 15. Bd3 {[%clk 0:02:11]}  Bxd3 {[%clk 0:02:22]} 16. Rxd3 {[%clk 0:02:12]}  Rfc8 {[%clk 0:02:22]} 17. Qd2 {[%clk 0:02:10]}  Qa4 {[%clk 0:02:15]} 18. Kb1 {[%clk 0:02:07]}  e5 {[%clk 0:01:52]} 19. Re1 {[%clk 0:02:01]}  Rc5 {[%clk 0:01:39]} 20. Re4 {[%clk 0:01:10]}  Qc6 {[%clk 0:01:31]} 21. c3 {[%clk 0:00:40]}  f5 {[%clk 0:01:11]} 22. Rd8+ {[%clk 0:00:38]}  Rxd8 {[%clk 0:01:08]} 23. Qxd8+ {[%clk 0:00:39]}  Kf7 {[%clk 0:01:05]} 24. Re2 {[%clk 0:00:24]}  Rd5 {[%clk 0:00:57]} 25. Qh8 {[%clk 0:00:19]}  Rd1+ {[%clk 0:00:48]} 26. Kc2 {[%clk 0:00:19]}  Qd5 {[%clk 0:00:42]} 27. Qxh7+ {[%clk 0:00:16]}  Kf6 {[%clk 0:00:32]} 28. Qh8+ {[%clk 0:00:16]}  Kf7 {[%clk 0:00:32]} 29. Qh7+ {[%clk 0:00:09]}  Kf6 {[%clk 0:00:32]} 30. Qh8+ {[%clk 0:00:10]}  Kg5 {[%clk 0:00:27]} 31. Qxe5 {[%clk 0:00:06]}  Rd2+ {[%clk 0:00:26]} 32. Kc1 {[%clk 0:00:07]}  Rd1+ {[%clk 0:00:23]} 33. Kc2 {[%clk 0:00:07]}  Rd2+ {[%clk 0:00:17]} 34. Kc1 {[%clk 0:00:07]}  Rd1+ {[%clk 0:00:09]} 35. Kc2 {[%clk 0:00:07]} 1/2-1/2


[Site "https://www.chess.com"]

[Event "Titled Tuesday Blitz July 25 Early 2023"]
[White "Pershina, Elena"]
[Black "Yurtseven, Melih"]
[WhiteFideId "24147516"]
[BlackFideId "6312160"]
[WhiteElo "2410"]
[BlackElo "2543"]
[Result "1-0"]
[Round "5"]
[TimeControl "180+2"]
[Date "2023.07.25"]
[WhiteClock "0:00:12"]
[BlackClock "0:00:00"]
[Board "124"]

1. c4 {[%clk 0:03:00]}  Nf6 {[%clk 0:02:53]} 2. g3 {[%clk 0:03:00]}  g6 {[%clk 0:02:40]} 3. Bg2 {[%clk 0:02:59]}  Bg7 {[%clk 0:02:41]} 4. Nc3 {[%clk 0:02:56]}  O-O {[%clk 0:02:42]} 5. d4 {[%clk 0:02:53]}  d6 {[%clk 0:02:43]} 6. h3 {[%clk 0:02:52]}  Nbd7 {[%clk 0:02:43]} 7. Nf3 {[%clk 0:02:42]}  e5 {[%clk 0:02:44]} 8. O-O {[%clk 0:02:39]}  exd4 {[%clk 0:02:44]} 9. Nxd4 {[%clk 0:02:39]}  Re8 {[%clk 0:02:45]} 10. e4 {[%clk 0:02:37]}  Nc5 {[%clk 0:02:44]} 11. Re1 {[%clk 0:02:34]}  Ne6 {[%clk 0:02:41]} 12. Be3 {[%clk 0:02:31]}  Nxd4 {[%clk 0:02:41]} 13. Bxd4 {[%clk 0:02:32]}  Be6 {[%clk 0:02:41]} 14. b3 {[%clk 0:02:31]}  a6 {[%clk 0:02:40]} 15. Rc1 {[%clk 0:02:29]}  Rb8 {[%clk 0:02:40]} 16. Nd5 {[%clk 0:02:25]}  Bxd5 {[%clk 0:02:39]} 17. cxd5 {[%clk 0:02:23]}  Nd7 {[%clk 0:02:36]} 18. Bxg7 {[%clk 0:02:12]}  Kxg7 {[%clk 0:02:37]} 19. Qc2 {[%clk 0:02:13]}  Rc8 {[%clk 0:02:35]} 20. Kh2 {[%clk 0:02:09]}  h5 {[%clk 0:02:28]} 21. Qc3+ {[%clk 0:02:05]}  Qf6 {[%clk 0:02:26]} 22. f4 {[%clk 0:01:56]}  Re7 {[%clk 0:02:16]} 23. b4 {[%clk 0:01:54]}  Nb6 {[%clk 0:02:03]} 24. e5 {[%clk 0:01:45]}  dxe5 {[%clk 0:01:59]} 25. fxe5 {[%clk 0:01:45]}  Qf5 {[%clk 0:02:00]} 26. Qd4 {[%clk 0:01:33]}  Kg8 {[%clk 0:01:49]} 27. e6 {[%clk 0:00:43]}  Rd8 {[%clk 0:01:40]} 28. Rxc7 {[%clk 0:00:28]}  Rxc7 {[%clk 0:00:39]} 29. Qxb6 {[%clk 0:00:27]}  Rcc8 {[%clk 0:00:40]} 30. e7 {[%clk 0:00:21]}  Re8 {[%clk 0:00:41]} 31. d6 {[%clk 0:00:20]}  Rc2 {[%clk 0:00:41]} 32. Qxb7 {[%clk 0:00:19]}  Rd2 {[%clk 0:00:11]} 33. Qc6 {[%clk 0:00:15]}  Kh7 {[%clk 0:00:06]} 34. Qxe8 {[%clk 0:00:14]}  Qf2 {[%clk 0:00:06]} 35. Qc6 {[%clk 0:00:13]}  h4 {[%clk 0:00:00]} 36. e8=Q {[%clk 0:00:12]} 1-0


[Site "https://www.chess.com"]

[Event "Titled Tuesday Blitz July 25 Early 2023"]
[White "Harriott, Tyrell"]
[Black "Andreev, Konstantin"]
[WhiteFideId "2086484"]
[BlackFideId "24239305"]
[WhiteElo "2382"]
[BlackElo "2536"]
[Result "0-1"]
[Round "5"]
[TimeControl "180+2"]
[Date "2023.07.25"]
[WhiteClock "0:00:09"]
[BlackClock "0:00:05"]
[Board "128"]

1. d4 {[%clk 0:03:00]}  Nf6 {[%clk 0:02:56]} 2. e3 {[%clk 0:03:01]}  d5 {[%clk 0:02:56]} 3. Bd3 {[%clk 0:03:02]}  c5 {[%clk 0:02:54]} 4. c3 {[%clk 0:03:02]}  Nc6 {[%clk 0:02:53]} 5. f4 {[%clk 0:03:02]}  Ne4 {[%clk 0:02:52]} 6. Nd2 {[%clk 0:02:54]}  Nxd2 {[%clk 0:02:50]} 7. Bxd2 {[%clk 0:02:54]}  g6 {[%clk 0:02:49]} 8. Nf3 {[%clk 0:02:54]}  Bg7 {[%clk 0:02:49]} 9. O-O {[%clk 0:02:54]}  b6 {[%clk 0:02:49]} 10. Ne5 {[%clk 0:02:53]}  Qc7 {[%clk 0:02:47]} 11. Qa4 {[%clk 0:02:52]}  Bb7 {[%clk 0:02:39]} 12. Bb5 {[%clk 0:02:51]}  Bxe5 {[%clk 0:02:35]} 13. fxe5 {[%clk 0:02:51]}  O-O {[%clk 0:02:35]} 14. Rae1 {[%clk 0:02:44]}  a6 {[%clk 0:02:33]} 15. Bd3 {[%clk 0:02:43]}  b5 {[%clk 0:02:29]} 16. Qd1 {[%clk 0:02:43]}  c4 {[%clk 0:02:24]} 17. Bc2 {[%clk 0:02:42]}  Rad8 {[%clk 0:02:11]} 18. Qg4 {[%clk 0:02:39]}  Kh8 {[%clk 0:02:08]} 19. Qh4 {[%clk 0:02:36]}  Qd7 {[%clk 0:01:44]} 20. e4 {[%clk 0:02:34]}  dxe4 {[%clk 0:01:44]} 21. Bxe4 {[%clk 0:02:34]}  Qe6 {[%clk 0:01:40]} 22. Bc1 {[%clk 0:02:30]}  Na5 {[%clk 0:01:33]} 23. Bb1 {[%clk 0:02:14]}  Bd5 {[%clk 0:01:24]} 24. Bh6 {[%clk 0:02:09]}  Rg8 {[%clk 0:01:22]} 25. Rf2 {[%clk 0:02:04]}  f5 {[%clk 0:01:17]} 26. Re3 {[%clk 0:01:56]}  Qf7 {[%clk 0:01:08]} 27. Rh3 {[%clk 0:01:54]}  Rde8 {[%clk 0:01:03]} 28. Bg5 {[%clk 0:01:54]}  Rg7 {[%clk 0:00:58]} 29. Bh6 {[%clk 0:01:53]}  Rgg8 {[%clk 0:00:58]} 30. Qf4 {[%clk 0:01:52]}  Nc6 {[%clk 0:00:52]} 31. Rg3 {[%clk 0:01:50]}  Nd8 {[%clk 0:00:49]} 32. Qh4 {[%clk 0:01:40]}  Ne6 {[%clk 0:00:47]} 33. Bd2 {[%clk 0:01:36]}  Ref8 {[%clk 0:00:43]} 34. Bh6 {[%clk 0:01:34]}  Re8 {[%clk 0:00:43]} 35. Re3 {[%clk 0:01:32]}  a5 {[%clk 0:00:41]} 36. Re1 {[%clk 0:01:28]}  b4 {[%clk 0:00:40]} 37. g4 {[%clk 0:01:25]}  g5 {[%clk 0:00:38]} 38. Qh3 {[%clk 0:01:19]}  f4 {[%clk 0:00:34]} 39. Kf1 {[%clk 0:00:59]}  bxc3 {[%clk 0:00:29]} 40. bxc3 {[%clk 0:00:58]}  Rb8 {[%clk 0:00:28]} 41. Bf5 {[%clk 0:00:58]}  f3 {[%clk 0:00:20]} 42. Rxf3 {[%clk 0:00:49]}  Bxf3 {[%clk 0:00:15]} 43. Qxf3 {[%clk 0:00:50]}  Rb6 {[%clk 0:00:13]} 44. Qd5 {[%clk 0:00:38]}  Nd8 {[%clk 0:00:11]} 45. Qc5 {[%clk 0:00:23]}  Rxh6 {[%clk 0:00:10]} 46. Kg1 {[%clk 0:00:21]}  Rc6 {[%clk 0:00:09]} 47. Qb5 {[%clk 0:00:20]}  e6 {[%clk 0:00:10]} 48. Be4 {[%clk 0:00:20]}  Rc7 {[%clk 0:00:10]} 49. Rf1 {[%clk 0:00:19]}  Qg7 {[%clk 0:00:11]} 50. Qb6 {[%clk 0:00:19]}  Rf7 {[%clk 0:00:10]} 51. Re1 {[%clk 0:00:16]}  Rgf8 {[%clk 0:00:11]} 52. Qxa5 {[%clk 0:00:16]}  Rf4 {[%clk 0:00:11]} 53. Bg2 {[%clk 0:00:15]}  Rxg4 {[%clk 0:00:11]} 54. Kh1 {[%clk 0:00:14]}  Rgf4 {[%clk 0:00:09]} 55. Rg1 {[%clk 0:00:14]}  Rf2 {[%clk 0:00:09]} 56. Qb4 {[%clk 0:00:13]}  Qf7 {[%clk 0:00:09]} 57. Qxc4 {[%clk 0:00:12]}  Qf4 {[%clk 0:00:07]} 58. a4 {[%clk 0:00:12]}  Qd2 {[%clk 0:00:06]} 59. a5 {[%clk 0:00:10]}  Qa2 {[%clk 0:00:04]} 60. a6 {[%clk 0:00:10]}  Qxc4 {[%clk 0:00:04]} 61. a7 {[%clk 0:00:08]}  Rxg2 {[%clk 0:00:05]} 62. a8=Q {[%clk 0:00:09]}  Rxg1+ {[%clk 0:00:05]} 63. Kxg1 {[%clk 0:00:09]}  Qf1# {[%clk 0:00:05]} 0-1


[Site "https://www.chess.com"]

[Event "Titled Tuesday Blitz July 25 Early 2023"]
[White "Terletsky, Oleg"]
[Black "Namitbir Singh Walia"]
[WhiteFideId "14116774"]
[BlackFideId "35071068"]
[WhiteElo "2536"]
[BlackElo "2379"]
[Result "1/2-1/2"]
[Round "5"]
[TimeControl "180+2"]
[Date "2023.07.25"]
[WhiteClock "0:00:07"]
[BlackClock "0:00:03"]
[Board "129"]

1. e4 {[%clk 0:02:57]}  c5 {[%clk 0:02:59]} 2. Nf3 {[%clk 0:02:56]}  Nc6 {[%clk 0:02:59]} 3. d4 {[%clk 0:02:57]}  cxd4 {[%clk 0:03:00]} 4. Nxd4 {[%clk 0:02:58]}  g6 {[%clk 0:03:01]} 5. c4 {[%clk 0:02:57]}  Nf6 {[%clk 0:03:01]} 6. Nc3 {[%clk 0:02:56]}  Nxd4 {[%clk 0:03:01]} 7. Qxd4 {[%clk 0:02:56]}  d6 {[%clk 0:03:01]} 8. f3 {[%clk 0:02:53]}  Bg7 {[%clk 0:03:01]} 9. Be3 {[%clk 0:02:54]}  O-O {[%clk 0:02:59]} 10. Qd2 {[%clk 0:02:54]}  Be6 {[%clk 0:02:40]} 11. Rc1 {[%clk 0:02:51]}  Qa5 {[%clk 0:02:29]} 12. b3 {[%clk 0:02:50]}  Rfc8 {[%clk 0:02:21]} 13. Be2 {[%clk 0:02:12]}  a6 {[%clk 0:02:17]} 14. Na4 {[%clk 0:02:06]}  Qxd2+ {[%clk 0:02:10]} 15. Kxd2 {[%clk 0:02:07]}  Nd7 {[%clk 0:02:10]} 16. Rc2 {[%clk 0:01:54]}  f5 {[%clk 0:01:59]} 17. exf5 {[%clk 0:01:35]}  Bxf5 {[%clk 0:01:58]} 18. Bd3 {[%clk 0:01:35]}  Bxd3 {[%clk 0:01:55]} 19. Kxd3 {[%clk 0:01:35]}  b5 {[%clk 0:01:47]} 20. Nb6 {[%clk 0:01:16]}  Nxb6 {[%clk 0:01:37]} 21. Bxb6 {[%clk 0:01:17]}  Rc6 {[%clk 0:00:47]} 22. Bd4 {[%clk 0:01:04]}  e5 {[%clk 0:00:23]} 23. Be3 {[%clk 0:00:59]}  bxc4+ {[%clk 0:00:16]} 24. bxc4 {[%clk 0:00:56]}  Rac8 {[%clk 0:00:15]} 25. Rhc1 {[%clk 0:00:55]}  Kf7 {[%clk 0:00:14]} 26. f4 {[%clk 0:00:45]}  Ke6 {[%clk 0:00:15]} 27. fxe5 {[%clk 0:00:45]}  Bxe5 {[%clk 0:00:13]} 28. h3 {[%clk 0:00:46]}  Rf8 {[%clk 0:00:12]} 29. Rf2 {[%clk 0:00:39]}  Rxf2 {[%clk 0:00:09]} 30. Bxf2 {[%clk 0:00:40]}  Rc7 {[%clk 0:00:09]} 31. Rb1 {[%clk 0:00:35]}  Rf7 {[%clk 0:00:09]} 32. Be3 {[%clk 0:00:35]}  Bf4 {[%clk 0:00:08]} 33. Rb6 {[%clk 0:00:29]}  Bxe3 {[%clk 0:00:06]} 34. Kxe3 {[%clk 0:00:30]}  Rc7 {[%clk 0:00:06]} 35. Kd4 {[%clk 0:00:30]}  Rc5 {[%clk 0:00:04]} 36. Rxa6 {[%clk 0:00:29]}  Rg5 {[%clk 0:00:04]} 37. g4 {[%clk 0:00:23]}  h5 {[%clk 0:00:05]} 38. gxh5 {[%clk 0:00:17]}  Rxh5 {[%clk 0:00:06]} 39. a4 {[%clk 0:00:17]}  Rh4+ {[%clk 0:00:06]} 40. Kc3 {[%clk 0:00:17]}  Rxh3+ {[%clk 0:00:07]} 41. Kb4 {[%clk 0:00:17]}  Rh1 {[%clk 0:00:07]} 42. c5 {[%clk 0:00:15]}  Rb1+ {[%clk 0:00:07]} 43. Ka3 {[%clk 0:00:15]}  Rd1 {[%clk 0:00:06]} 44. c6 {[%clk 0:00:15]}  Rc1 {[%clk 0:00:06]} 45. Kb2 {[%clk 0:00:15]}  Rc5 {[%clk 0:00:06]} 46. a5 {[%clk 0:00:10]}  Kd5 {[%clk 0:00:07]} 47. Ra8 {[%clk 0:00:08]}  Kxc6 {[%clk 0:00:07]} 48. a6 {[%clk 0:00:07]}  Kb6 {[%clk 0:00:06]} 49. Rg8 {[%clk 0:00:07]}  g5 {[%clk 0:00:06]} 50. Rg6 {[%clk 0:00:07]}  Rd5 {[%clk 0:00:06]} 51. Kc3 {[%clk 0:00:06]}  Kxa6 {[%clk 0:00:06]} 52. Kc4 {[%clk 0:00:07]}  Rc5+ {[%clk 0:00:06]} 53. Kd4 {[%clk 0:00:08]}  Kb5 {[%clk 0:00:05]} 54. Rxd6 {[%clk 0:00:08]}  g4 {[%clk 0:00:04]} 55. Rg6 {[%clk 0:00:08]}  Rc4+ {[%clk 0:00:03]} 56. Ke5 {[%clk 0:00:07]}  Kb4 {[%clk 0:00:03]} 57. Kf5 {[%clk 0:00:07]}  Kc3 {[%clk 0:00:04]} 58. Rxg4 {[%clk 0:00:06]}  Rxg4 {[%clk 0:00:03]} 59. Kxg4 {[%clk 0:00:07]} 1/2-1/2


[Site "https://www.chess.com"]

[Event "Titled Tuesday Blitz July 25 Early 2023"]
[White "Chor, Kevin"]
[Black "Slavin, Alexey"]
[WhiteFideId "2090740"]
[BlackFideId "24104388"]
[WhiteElo "2530"]
[BlackElo "2366"]
[Result "1-0"]
[Round "5"]
[TimeControl "180+2"]
[Date "2023.07.25"]
[WhiteClock "0:00:07"]
[BlackClock "0:00:11"]
[Board "132"]

1. e4 {[%clk 0:03:00]}  Nc6 {[%clk 0:02:56]} 2. Nf3 {[%clk 0:03:00]}  d6 {[%clk 0:02:56]} 3. Bc4 {[%clk 0:02:55]}  Nf6 {[%clk 0:02:55]} 4. d3 {[%clk 0:02:54]}  Bg4 {[%clk 0:02:55]} 5. Nbd2 {[%clk 0:02:49]}  e5 {[%clk 0:02:54]} 6. h3 {[%clk 0:02:46]}  Bh5 {[%clk 0:02:54]} 7. g4 {[%clk 0:02:43]}  Bg6 {[%clk 0:02:54]} 8. Nf1 {[%clk 0:02:43]}  Na5 {[%clk 0:02:50]} 9. Bb3 {[%clk 0:02:36]}  Nxb3 {[%clk 0:02:50]} 10. axb3 {[%clk 0:02:37]}  Be7 {[%clk 0:02:50]} 11. Ng3 {[%clk 0:02:34]}  h5 {[%clk 0:02:48]} 12. g5 {[%clk 0:02:23]}  Nd7 {[%clk 0:02:48]} 13. Nf5 {[%clk 0:02:22]}  Bf8 {[%clk 0:02:38]} 14. Be3 {[%clk 0:02:21]}  a6 {[%clk 0:02:37]} 15. N3h4 {[%clk 0:02:20]}  c6 {[%clk 0:02:21]} 16. Nxg6 {[%clk 0:02:13]}  fxg6 {[%clk 0:02:20]} 17. Nh4 {[%clk 0:02:13]}  Be7 {[%clk 0:01:37]} 18. Nxg6 {[%clk 0:02:13]}  Rh7 {[%clk 0:01:36]} 19. Rg1 {[%clk 0:01:37]}  Nf8 {[%clk 0:01:30]} 20. Nh4 {[%clk 0:01:29]}  g6 {[%clk 0:01:28]} 21. Qd2 {[%clk 0:01:07]}  Rf7 {[%clk 0:01:25]} 22. O-O-O {[%clk 0:01:06]}  Qd7 {[%clk 0:01:19]} 23. Rg3 {[%clk 0:01:06]}  d5 {[%clk 0:01:08]} 24. exd5 {[%clk 0:00:51]}  cxd5 {[%clk 0:01:07]} 25. d4 {[%clk 0:00:47]}  e4 {[%clk 0:01:02]} 26. Kb1 {[%clk 0:00:46]}  Bd6 {[%clk 0:00:59]} 27. Rgg1 {[%clk 0:00:44]}  Qxh3 {[%clk 0:00:54]} 28. Rh1 {[%clk 0:00:44]}  Qd7 {[%clk 0:00:54]} 29. Qa5 {[%clk 0:00:41]}  Rc8 {[%clk 0:00:45]} 30. Qxd5 {[%clk 0:00:37]}  Qc6 {[%clk 0:00:38]} 31. Qxc6+ {[%clk 0:00:27]}  Rxc6 {[%clk 0:00:37]} 32. d5 {[%clk 0:00:28]}  Rcc7 {[%clk 0:00:30]} 33. c4 {[%clk 0:00:28]}  b5 {[%clk 0:00:27]} 34. Rd4 {[%clk 0:00:25]}  Rfe7 {[%clk 0:00:24]} 35. Re1 {[%clk 0:00:25]}  Bb4 {[%clk 0:00:19]} 36. d6 {[%clk 0:00:20]}  Bxe1 {[%clk 0:00:19]} 37. dxc7 {[%clk 0:00:20]}  Rxc7 {[%clk 0:00:19]} 38. Rxe4+ {[%clk 0:00:20]}  Kf7 {[%clk 0:00:19]} 39. Bb6 {[%clk 0:00:15]}  Rc6 {[%clk 0:00:19]} 40. Rxe1 {[%clk 0:00:10]}  Rxb6 {[%clk 0:00:19]} 41. c5 {[%clk 0:00:11]}  Rc6 {[%clk 0:00:19]} 42. b4 {[%clk 0:00:11]}  a5 {[%clk 0:00:19]} 43. Nf3 {[%clk 0:00:12]}  Nd7 {[%clk 0:00:17]} 44. Rd1 {[%clk 0:00:12]}  Ke6 {[%clk 0:00:14]} 45. Nd4+ {[%clk 0:00:11]}  Kd5 {[%clk 0:00:13]} 46. Nxc6+ {[%clk 0:00:11]}  Kxc6 {[%clk 0:00:13]} 47. Rd6+ {[%clk 0:00:11]}  Kc7 {[%clk 0:00:13]} 48. Rxg6 {[%clk 0:00:09]}  axb4 {[%clk 0:00:13]} 49. Rg7 {[%clk 0:00:07]}  Kc6 {[%clk 0:00:14]} 50. Rxd7 {[%clk 0:00:05]}  Kxd7 {[%clk 0:00:14]} 51. g6 {[%clk 0:00:05]}  Ke6 {[%clk 0:00:14]} 52. g7 {[%clk 0:00:06]}  Kf7 {[%clk 0:00:13]} 53. c6 {[%clk 0:00:07]}  Kxg7 {[%clk 0:00:14]} 54. c7 {[%clk 0:00:07]}  b3 {[%clk 0:00:15]} 55. c8=Q {[%clk 0:00:07]}  Kg6 {[%clk 0:00:11]} 56. Qc6+ {[%clk 0:00:07]} 1-0


[Site "https://www.chess.com"]